[Event "55th Biel Festival MTO 2022"]
[Site "Biel"]
[Date "2022.07.22"]
[Round "9.18"]
[White "Azarov, Sergei"]
[Black "Seul, Georg"]
[Result "1-0"]
[ECO "B12"]
[WhiteElo "2566"]
[BlackElo "2367"]
[Annotator "TA"]
[PlyCount "79"]
[EventDate "2022.07.13"]
[EventType "swiss"]
[EventCountry "SUI"]
[SourceTitle "playchess.com"]
[Source "ChessBase"]
[SourceQuality "1"]
[TimeControl "40/5400+30:1800+30"]

{[%evp 9,79,8,8,-14,-3,-20,27,26,22,27,24,32,25,34,36,35,33,25,35,21,21,33,67,58,54,52,42,58,65,55,96,110,101,59,233,250,245,168,142,140,225,128,132,125,483,181,237,236,225,198,202,197,318,314,325,318,311,311,393,393,460,462,448,447,424,437,470,468,527,513,503,477]} 1. e4 {[%emt 0:00:06]} c6 {[%emt 0:00:05]} 2. d4 {[%emt 0:00:20]} d5 {[%emt 0:00:05]} 3. e5 {[%emt 0:00:20]} c5 {[%emt 0:00:07]} 4. dxc5 {[%emt 0:00:24]} e6 {[%emt 0:00:05]} 5. Be3 {[%emt 0:01:05]} Nd7 {[%emt 0:00:23]} 6. Bb5 {[%emt 0:00:49] B12: Caro-Kann: Advance Variation.} Ne7 {[%emt 0:00:16] 6...Ne7 scores better than 6...Qc7.} 7. Bd4 {[%emt 0:01:32]} Qa5+ {[%emt 0:23:35]} (7... Nc6 $142) 8. Nc3 $11 {[%emt 0:00:57] White has an edge.} a6 {[%emt 0:03:20]} 9. Bxd7+ {[%emt 0:04:02]} Bxd7 {[%emt 0:00:29]} 10. a3 $1 {[%emt 0:05:33]} Nf5 {[%emt 0:00:15]} 11. b4 {[%emt 0:01:47]} Qc7 {[%emt 0:00:06] [#]} 12. Nf3 $146 {[%emt 0:03:16]} ({Predecessor:} 12. Nge2 g6 13. O-O Bg7 14. f4 Nxd4 15. Qxd4 O-O 16. Rad1 Rab8 17. Nc1 Rfc8 18. Rf3 {0-1 (37) Zwanzger,J (2263)-Donchenko,A (2659) Playchess.com INT 2021}) 12... Be7 {[%emt 0:00:56]} 13. O-O {[%emt 0:08:11]} O-O {[%emt 0:11:48]} 14. Ne2 {[%emt 0:01:06]} Nxd4 {[%emt 0:03:58]} 15. Qxd4 {[%emt 0:00:59]} Rfc8 {[%emt 0:34:30]} 16. Ng3 {[%emt 0:08:41]} b6 {[%emt 0:01:14]} 17. cxb6 {[%emt 0:26:08]} Qb7 {[%emt 0:00:04]} 18. Nd2 {[%emt 0:04:02][%cal Bf3d2,Bd2b3,Bb3a5][%mdl 32] Threatens to win with c4.} Rxc2 {[%emt 0:01:36]} 19. Nb3 {[%emt 0:00:33]} Rac8 {[%emt 0:06:00]} 20. Na5 $36 {[%emt 0:01:54][%mdl 2048] Keeping Black busy.} Qb8 {[%emt 0:00:07]} 21. b7 {[%emt 0:09:01]} R8c3 {[%emt 0:00:04]} ({Better is} 21... R8c7 $1 $14) 22. Ne4 $18 {[%emt 0:08:03] Pair of Knights!} Rc4 {[%emt 0:01:42]} 23. Nxc4 {[%emt 0:00:09]} Rxc4 {[%emt 0:00:06]} 24. Qd3 {[%emt 0:00:23][%cal Of1c1] Rfc1! is the strong threat.} Bb5 {[%emt 0:07:37] [#]} (24... Rxe4 $2 25. Qxa6 Bc6 26. Qxc6 $18) (24... Rc7 $16 {was worth a try.}) 25. Nc3 {[%emt 0:02:03]} ({Only move:} 25. Nd6 $1 $18 Bxd6 26. exd6) 25... Bc6 {[%emt 0:01:26]} 26. Rac1 {[%emt 0:02:21][%cal Oc3e4]} Qxe5 {[%emt 0:02:40][%mdl 8192] [#]} (26... Qxb7 $16 {is more resistant.} 27. Rfe1 h6) 27. Ne2 $2 {[%emt 0:03:29]} (27. Nxd5 $1 {[%mdl 512]} exd5 28. Rce1) 27... Rxc1 {[%emt 0:00:11]} (27... Bxb7 {is a better defense.} 28. Rxc4 dxc4 29. Qxc4 Bd6) 28. Rxc1 {[%emt 0:00:15]} Bxb7 {[%emt 0:00:06]} 29. Qe3 {[%emt 0:02:06]} Qxe3 {[%emt 0:00:29]} 30. fxe3 {[%emt 0:00:05][%cal Bf2e3,Be3d4][%mdl 4128] Endgame Hoping for Rc7. KRN-KB} Bd6 {[%emt 0:00:16] Prevents Rc7.} (30... Bd8 $142 31. Nd4 Kf8) 31. Nd4 {[%emt 0:00:30]} Kf8 {[%emt 0:01:45]} 32. Nb3 {[%emt 0:01:11] And now Na5 would win.} d4 {[%emt 0:00:22]} 33. exd4 {[%emt 0:00:33]} ({But not} 33. Nxd4 $6 Ke7 34. Nb3 Kd7 35. Nc5+ Bxc5 36. Rxc5 f6 $18) 33... Ke7 {[%emt 0:00:19]} 34. Nc5 {[%emt 0:00:36]} Bc8 {[%emt 0:00:02]} 35. Ne4 {[%emt 0:00:32] White is clearly winning.} Bd7 {[%emt 0:00:25]} 36. Nxd6 {[%emt 0:00:20]} Kxd6 {[%emt 0:00:02]} 37. Rc5 {[%emt 0:00:14]} h6 {[%emt 0:01:13]} 38. Kf2 {[%emt 0:01:39]} g5 {[%emt 0:00:11]} 39. g3 {[%emt 0:00:27]} f6 {[%emt 0:00:19]} 40. Ke3 {[%emt 0:00:21] Weighted Error Value: White=0.30/Black=0.46} 1-0

[Event "55th Biel Festival MTO 2022"]
[Site "Biel"]
[Date "2022.07.22"]
[Round "9.21"]
[White "Gaehwiler, Gabriel"]
[Black "Schnepp, Gunnar"]
[Result "1/2-1/2"]
[ECO "B91"]
[WhiteElo "2420"]
[BlackElo "2265"]
[Annotator "TA"]
[PlyCount "91"]
[EventDate "2022.07.13"]
[EventType "swiss"]
[EventCountry "SUI"]
[SourceTitle "playchess.com"]
[Source "ChessBase"]
[SourceQuality "1"]
[TimeControl "40/5400+30:1800+30"]

{[%evp 14,91,20,11,24,20,10,6,21,12,35,29,37,17,40,50,33,0,0,0,21,31,36,34,213,102,115,134,112,92,93,96,99,105,104,-33,-35,-49,-49,-49,-49,-92,-85,-85,-85,-85,-85,-97,-81,-81,-81,-81,-81,-85,-80,-97,-98,-98,-79,-85,-66,-67,-68,-75,-8,-19,-44,-66,0,0,0,-8,0,-8,-8,-8,0,0,0,-8]} 1. e4 {[%emt 0:14:45]} c5 {[%emt 0:00:20]} 2. Nf3 {[%emt 0:00:07]} d6 {[%emt 0:00:10]} 3. d4 {[%emt 0:01:11]} cxd4 {[%emt 0:00:03]} 4. Nxd4 {[%emt 0:00:13]} Nf6 {[%emt 0:00:03]} 5. Nc3 {[%emt 0:00:14]} a6 {[%emt 0:00:01]} 6. g3 {[%emt 0:02:11]} e5 {[%emt 0:00:22]} 7. Nde2 {[%emt 0:00:07]} Be6 {[%emt 0:04:08]} 8. Bg2 {[%emt 0:03:05]} Nbd7 {[%emt 0:04:35] B91: Sicilian Najdorf: 6 g3.} 9. a4 {[%emt 0:02:07]} Be7 {[%emt 0:02:43]} 10. b3 {[%emt 0:10:45]} O-O {[%emt 0:04:28][%cal Ob7b5]} 11. O-O {[%emt 0:03:27]} Qc7 {[%emt 0:04:26]} 12. h3 {[%emt 0:08:18]} Rac8 {[%emt 0:09:05][%cal Ob7b5]} 13. Be3 {[%emt 0:09:39]} b5 {[%emt 0:05:09]} 14. axb5 {[%emt 0:05:40]} axb5 {[%emt 0:00:15] [#]} 15. Ra2 $146 {[%emt 0:05:54]} ({Predecessor:} 15. Ra7 Qb8 16. f4 b4 17. Na4 Bd8 18. f5 Nc5 19. Bxc5 dxc5 20. Ra6 Bd7 21. Rd6 Bxa4 22. bxa4 {½-½ (57) Kazarian,A (2259)-Verlinde,T (2202) Netherlands 2017}) 15... b4 {[%emt 0:06:28]} 16. Nd5 {[%emt 0:11:06]} Nxd5 {[%emt 0:02:23]} (16... Bxd5 $5 17. exd5 Ra8 18. Rxa8 Rxa8 $11) 17. exd5 {[%emt 0:00:02]} Bf5 {[%emt 0:00:09]} 18. Qd2 {[%emt 0:00:40]} Qb7 $2 {[%emt 0:05:30]} (18... Bxc2 $2 19. Rc1 $18) (18... Ra8 $14 19. Rfa1 Rxa2 20. Rxa2 Rb8) 19. f4 {[%emt 0:02:19]} (19. g4 $1 $18 {[%cal Rg4f5] and the rest is easy.}) 19... Nc5 $16 {[%emt 0:09:37]} 20. fxe5 {[%emt 0:10:51]} Be4 {[%emt 0:00:52]} 21. Bxc5 {[%emt 0:07:25]} Bxg2 {[%emt 0:00:11] [#]} 22. Ra7 $1 {[%emt 0:00:09]} ({Much worse is} 22. Kxg2 $6 Rxc5 23. Rf4 (23. exd6 $2 Rxd5 24. Ra7 Qc6 $17) 23... Rxd5 24. Qxb4 Rb5+ 25. Qe4 dxe5 26. Qxb7 Rxb7 $11) ({Not} 22. Bxd6 Bxf1 23. Kxf1 Bxd6 24. exd6 Rfd8 $19) 22... Qxd5 {[%emt 0:02:01]} 23. Qxd5 {[%emt 0:00:16] The board is on fire.} Bxd5 {[%emt 0:00:02]} 24. exd6 {[%emt 0:00:58] White is more active.} ({Don't play} 24. Rxe7 dxc5 25. Nf4 Be4 $15) ({White has to play} 24. Bxb4 $16 Bd8 25. Ra2) 24... Bd8 $15 {[%emt 0:01:29]} 25. Bd4 {[%emt 0:00:57] Nf4 is the strong threat.} Rxc2 {[%emt 0:00:20]} 26. Nf4 {[%emt 0:00:21]} Bxb3 {[%emt 0:01:37] A strong pair of Bishops.} 27. Rb1 {[%emt 0:00:05] [#]} Rc4 $1 {[%emt 0:06:40]} 28. Rxb3 {[%emt 0:00:44]} Rxd4 {[%emt 0:00:03]} 29. Rb7 {[%emt 0:00:33]} Rxd6 {[%emt 0:00:43]} 30. R3xb4 {[%emt 0:00:23]} Rd2 {[%emt 0:05:08]} 31. Rb2 {[%emt 0:00:17]} Rxb2 {[%emt 0:00:31]} 32. Rxb2 $17 {[%emt 0:00:01][%mdl 4096] Endgame KRB-KRN} Bc7 {[%emt 0:00:07]} 33. Rb4 {[%emt 0:00:34]} Rb8 {[%emt 0:01:25]} 34. Rxb8+ {[%emt 0:00:25]} Bxb8 {[%emt 0:00:01] KB-KN} 35. Ne2 {[%emt 0:00:06]} h5 {[%emt 0:01:43]} 36. g4 {[%emt 0:00:26]} Be5 {[%emt 0:06:54]} 37. Kg2 {[%emt 0:00:18]} Kh7 {[%emt 0:00:25]} 38. Ng1 {[%emt 0:01:26]} h4 {[%emt 0:12:37]} (38... Kg6 $17 39. Nf3 Bf4) 39. Kf3 {[%emt 0:00:57]} Kg6 {[%emt 0:01:20]} 40. Ke4 {[%emt 0:00:07]} f6 {[%emt 0:01:27]} ({Black should play} 40... Bb8 $15) 41. Nf3 $11 {[%emt 0:30:12][%csl LRe5,LRh4] The position is equal.} Bg3 {[%emt 0:30:32]} 42. Nd4 {[%emt 0:00:25]} Kf7 {[%emt 0:00:59]} 43. Nf5 {[%emt 0:00:05]} Be1 {[%emt 0:00:33]} 44. Kd5 $1 {[%emt 0:00:00]} Bg3 {[%emt 0:00:00]} 45. Ke4 {[%emt 0:00:00]} Be1 {[%emt 0:00:00]} 46. Kd5 {[%emt 0:00:00] Weighted Error Value: White=0.16 (very precise) /Black=0.21 (precise)} 1/2-1/2

[Event "55th Biel Festival MTO 2022"]
[Site "Biel"]
[Date "2022.07.22"]
[Round "9.22"]
[White "Tanmay Chopra"]
[Black "Dushyant Sharma"]
[Result "0-1"]
[ECO "D27"]
[WhiteElo "2322"]
[BlackElo "2416"]
[Annotator "TA"]
[PlyCount "66"]
[EventDate "2022.07.13"]
[EventType "swiss"]
[EventCountry "SUI"]
[SourceTitle "playchess.com"]
[Source "ChessBase"]
[SourceQuality "1"]
[TimeControl "40/5400+30:1800+30"]

{[%evp 12,66,23,28,33,30,45,26,35,30,30,22,56,8,25,31,151,154,159,157,157,137,199,213,206,196,206,191,211,213,206,181,235,162,185,10,10,0,287,287,485,475,906,899,886,881,919,834,837,831,825,800,29987,167,156,-29996,-29997]} 1. d4 {[%emt 0:18:06]} d5 {[%emt 0:00:09]} 2. c4 {[%emt 0:00:03]} dxc4 {[%emt 0:00:53]} 3. e3 {[%emt 0:00:31]} Nf6 {[%emt 0:02:45]} 4. Bxc4 {[%emt 0:00:04]} e6 {[%emt 0:00:56]} 5. Nf3 {[%emt 0:00:04]} c5 {[%emt 0:00:24]} 6. O-O {[%emt 0:00:13]} a6 {[%emt 0:00:37]} 7. b3 {[%emt 0:01:33]} Nc6 {[%emt 0:09:22] D27: Queen's Gambit Accepted: Classical main line: 7 e4!? and 7 a4.} 8. dxc5 {[%emt 0:06:37]} Bxc5 {[%emt 0:05:37]} 9. Nbd2 {[%emt 0:00:06]} b5 {[%emt 0:04:28] White has an edge.} 10. Be2 {[%emt 0:00:08]} Bb7 {[%emt 0:05:15]} 11. a4 {[%emt 0:12:01]} Qb6 {[%emt 0:23:33]} 12. Bb2 {[%emt 0:00:27]} (12. axb5 $14 axb5 13. Rxa8+ Bxa8 14. Bb2) 12... O-O {[%emt 0:00:36]} 13. Qb1 {[%emt 0:05:56] [#]} Rfd8 $146 {[%emt 0:04:25] [#]} (13... Nb4 $14) ({Predecessor:} 13... Be7 14. axb5 axb5 15. Qd3 Ba6 16. Rfc1 Rfd8 17. Qb1 Bb7 18. Nd4 Bc5 19. N2f3 Nxd4 20. Bxd4 Bxd4 21. Rxa8 Bxa8 22. Nxd4 {½-½ (35) Piorun,K (2635)-Teclaf,P (2537) Kruszwica 2022}) 14. Ng5 $1 $16 {[%emt 0:10:59]} Rxd2 {[%emt 0:20:55]} (14... g6 15. axb5) 15. Bxf6 {[%emt 0:00:06]} g6 {[%emt 0:00:15]} 16. Bf3 {[%emt 0:05:42] Black must now prevent Ne4.} Nb4 {[%emt 0:06:56]} (16... Be7 $16) 17. Bxb7 $18 {[%emt 0:08:17]} Qxb7 {[%emt 0:00:13]} 18. Qe4 $1 {[%emt 0:00:08]} Rd5 {[%emt 0:05:13]} 19. Qh4 $1 {[%emt 0:02:19]} h5 {[%emt 0:00:02]} 20. Ne4 $1 {[%emt 0:00:20]} bxa4 {[%emt 0:04:57]} 21. bxa4 {[%emt 0:20:46]} ({Don't play} 21. Rxa4 $6 Nd3 $14) 21... Nd3 {[%emt 0:00:44]} 22. Rad1 $40 {[%emt 0:01:23][%cal Od1d3][%mdl 128] aiming for Rxd3! White goes for the king.} Rc8 {[%emt 0:02:41]} 23. Ba1 $2 {[%emt 0:03:02]} ({Better is} 23. Bg5 $18) 23... Be7 $11 {[%emt 0:00:04] Active counter play!} 24. Nf6+ {[%emt 0:00:12]} Kf8 $2 {[%emt 0:00:55][%mdl 8192] [#]} (24... Bxf6 $11 25. Qxf6 e5) 25. e4 $1 $18 {[%emt 0:00:01]} Rc4 $2 {[%emt 0:00:33]} (25... Qb4 {keeps fighting.} 26. Nxd5 Bxh4 27. Nxb4 Nxb4) 26. Qg3 {[%emt 0:00:58]} Bd6 {[%emt 0:00:26]} (26... Nxf2 $142 27. exd5 Nxd1 28. Rxd1 Bxf6) 27. Qe3 {[%emt 0:01:15]} Bf4 {[%emt 0:00:32] Against Qh6+} 28. Qf3 {[%emt 0:00:59]} Nxf2 {[%emt 0:00:22]} 29. Qxf2 {[%emt 0:01:08]} Rxd1 {[%emt 0:00:05]} 30. Rxd1 {[%emt 0:00:09]} e5 {[%emt 0:00:11]} 31. g3 {[%emt 0:00:36] Threatens to win with Rd8+.} Qb3 {[%emt 0:00:14]} 32. Qe2 $2 {[%emt 0:01:27]} (32. Rd8+ {mates} Ke7 33. Re8+ Kd6 34. gxf4 Kc6 35. Bxe5 Qb7 36. Qd2 Qb1+ 37. Kg2) 32... Rc2 {[%emt 0:00:35]} 33. Qf1 {[%emt 0:00:45] [#]} (33. Qxa6 $2 {is a self mate.} Qe3+ 34. Kh1 Qf3+ 35. Kg1 Qg2#) (33. Qd3 $16 Qxd3 34. Rxd3 Rc1+ 35. Kf2 Rxa1 36. gxf4) 33... Qe3+ $1 {[%emt 0:00:11] What a bad dream for White.  Weighted Error Value: White=0.51/Black=0.81} 0-1

[Event "55th Biel Festival MTO 2022"]
[Site "Biel"]
[Date "2022.07.22"]
[Round "9.23"]
[White "Unuk, Laura"]
[Black "Materia, Marco"]
[Result "1-0"]
[ECO "E48"]
[WhiteElo "2340"]
[BlackElo "2409"]
[Annotator "TA"]
[PlyCount "67"]
[EventDate "2022.07.13"]
[EventType "swiss"]
[EventCountry "SUI"]
[SourceTitle "playchess.com"]
[Source "ChessBase"]
[SourceQuality "1"]
[TimeControl "40/5400+30:1800+30"]

{[%evp 13,67,-5,0,-4,0,-3,-6,0,0,0,6,-1,8,3,37,45,64,56,116,86,111,80,170,157,194,140,166,133,200,204,240,244,236,262,261,260,248,201,254,251,241,240,247,243,271,270,339,318,502,500,979,977,1072,938,839,749]} 1. d4 {[%emt 0:05:39]} Nf6 {[%emt 0:00:04]} 2. c4 {[%emt 0:00:18]} e6 {[%emt 0:00:05]} 3. Nc3 {[%emt 0:00:12]} Bb4 {[%emt 0:00:05]} 4. e3 {[%emt 0:00:09]} O-O {[%emt 0:00:14]} 5. Bd3 {[%emt 0:00:23]} d5 {[%emt 0:00:16]} 6. cxd5 {[%emt 0:00:50]} exd5 {[%emt 0:00:39]} 7. Nge2 {[%emt 0:01:19]} Re8 {[%emt 0:04:38]} 8. Qc2 {[%emt 0:01:44] E48: Nimzo-Indian: Rubinstein: 5 Bd3 d5 including 6 Ne2, but excluding 6 a3.} c6 {[%emt 0:03:03][%cal Bc7c6,Bc6c5,Bc5c4][%mdl 32]} 9. Bd2 {[%emt 0:07:00]} Nbd7 {[%emt 0:03:40]} 10. f3 {[%emt 0:04:07] The position is equal.} c5 {[%emt 0:18:43]} 11. a3 {[%emt 0:15:17]} Ba5 {[%emt 0:06:19] [#]} 12. O-O-O $146 {[%emt 0:17:20]} ({Predecessor:} 12. dxc5 Nxc5 13. Bb5 Ncd7 14. Nd4 a6 15. Ba4 Qc7 16. Rc1 b5 17. Bb3 Nb6 18. O-O {0-1 (31) Klachkou,P (1992)-Hryharovich,A (2100) Minsk 2022}) 12... c4 {[%emt 0:20:12]} 13. Bf5 {[%emt 0:01:25]} Nf8 {[%emt 0:03:01]} 14. g4 {[%emt 0:02:16]} Bxf5 {[%emt 0:03:55]} 15. gxf5 {[%emt 0:01:14]} b5 {[%emt 0:07:12] White leaves nothing to chance now.} (15... Qe7 $14) 16. e4 $16 {[%emt 0:02:55]} dxe4 {[%emt 0:04:26]} 17. fxe4 {[%emt 0:01:48][%cal Bf3e4,Be4e5][%mdl 32] aiming for e5.} b4 {[%emt 0:02:48]} (17... Bxc3 $16 18. Nxc3 Qxd4) 18. axb4 $18 {[%emt 0:00:23]} Bxb4 {[%emt 0:00:03] [#]} 19. Bg5 {[%emt 0:10:04]} (19. Rhg1 $1 $18) 19... h6 {[%emt 0:03:38]} 20. Bh4 {[%emt 0:06:42] Strongly threatening e5.} Be7 {[%emt 0:00:38] [#]} (20... Rb8 $16 {was called for.}) 21. e5 $1 {[%emt 0:03:43]} Nd5 {[%emt 0:01:45]} 22. Bxe7 {[%emt 0:00:24]} Rxe7 {[%emt 0:00:11]} 23. Nxd5 {[%emt 0:01:34]} Qxd5 {[%emt 0:00:01]} 24. Rhg1 {[%emt 0:02:58]} Rb7 {[%emt 0:03:05]} 25. Nc3 {[%emt 0:01:32]} Qf3 {[%emt 0:00:27]} 26. Rg3 {[%emt 0:04:31]} Qf4+ {[%emt 0:00:11]} 27. Qd2 {[%emt 0:00:12]} Qxd2+ {[%emt 0:01:26]} 28. Rxd2 {[%emt 0:00:03]} Rd8 {[%emt 0:02:02]} 29. Ne4 {[%emt 0:00:44]} Rb3 {[%emt 0:00:21]} 30. d5 {[%emt 0:00:55][%cal Bd4d5,Bd5d6][%mdl 32]} Rxg3 {[%emt 0:00:44]} (30... Rb7 {keeps fighting.} 31. e6 fxe6) 31. hxg3 {[%emt 0:00:07] White is clearly winning.} Nd7 {[%emt 0:00:05]} (31... Re8 $142 32. e6 fxe6) 32. e6 {[%emt 0:00:33]} Nb6 {[%emt 0:00:57]} 33. d6 {[%emt 0:00:52] And now e7 would win.} fxe6 {[%emt 0:00:07]} 34. fxe6 {[%emt 0:00:05] Weighted Error Value: White=0.03 (flawless) /Black=0.34} 1-0

[Event "55th Biel Festival MTO 2022"]
[Site "Biel"]
[Date "2022.07.22"]
[Round "9.24"]
[White "Song, Julien"]
[Black "Aaron, Deepak"]
[Result "1-0"]
[ECO "C11"]
[WhiteElo "2391"]
[BlackElo "2221"]
[Annotator "TA"]
[PlyCount "119"]
[EventDate "2022.07.13"]
[EventType "swiss"]
[EventCountry "SUI"]
[SourceTitle "playchess.com"]
[Source "ChessBase"]
[SourceQuality "1"]
[TimeControl "40/5400+30:1800+30"]

{[%evp 20,119,0,0,0,0,0,12,18,18,111,102,106,85,98,85,101,101,101,111,93,105,135,140,165,183,178,183,169,182,179,185,184,185,153,149,145,0,0,0,235,252,252,238,247,251,252,253,245,248,241,242,234,246,247,246,297,269,286,275,349,271,298,0,314,250,346,345,354,281,286,281,343,345,340,334,377,363,349,348,343,338,389,393,566,560,568,436,525,527,560,554,604,552,550,549,1944,1864,1543,1508,1084,1041]} 1. d4 {[%emt 0:00:06]} e6 {[%emt 0:02:08]} 2. e4 {[%emt 0:01:20]} d5 {[%emt 0:00:06]} 3. Nc3 {[%emt 0:00:50]} Nf6 {[%emt 0:00:06]} 4. e5 {[%emt 0:00:42]} Nfd7 {[%emt 0:00:34]} 5. f4 {[%emt 0:00:26]} c5 {[%emt 0:00:05]} 6. Nf3 {[%emt 0:00:17]} Nc6 {[%emt 0:00:07]} 7. Be3 {[%emt 0:00:21]} cxd4 {[%emt 0:00:06]} 8. Nxd4 {[%emt 0:00:17]} Bc5 {[%emt 0:00:12]} 9. Qd2 {[%emt 0:00:10]} O-O {[%emt 0:00:09]} 10. O-O-O {[%emt 0:00:12][%cal Ba1d1,Bd1d4,Bd4b4,Bb4b3,Bb3c3][%mdl 32]} Nxd4 {[%emt 0:00:05]} 11. Bxd4 {[%emt 0:00:05]} a6 {[%emt 0:00:08] C11: French: Classical System: 4 e5 and 4 Bg5 dxe4.} 12. Qe3 {[%emt 0:00:27]} Bxd4 {[%emt 0:00:26]} 13. Rxd4 {[%emt 0:00:11]} b5 {[%emt 0:01:50] The position is equal.} 14. Bd3 {[%emt 0:03:12][%cal Oc3e4] [#]} b4 $146 {[%emt 0:14:38]} (14... Bb7 $11 {remains equal.}) ({Predecessor:} 14... Qb6 15. f5 f6 16. exf6 Nxf6 17. fxe6 Bxe6 18. Re1 Rae8 19. Rf4 Qc7 20. Qd4 Bf7 {½-½ (48) Holroyd,K (2526)-Kluegel,J (2500) ICCF email 2015}) 15. Rxb4 $16 {[%emt 0:08:09]} a5 {[%emt 0:00:13]} 16. Rb3 {[%emt 0:18:09] White is much more active. The black rooks are badly placed.} Ba6 {[%emt 0:06:59]} 17. Na4 $40 {[%emt 0:27:28][%mdl 128] Black is in trouble.} Bxd3 {[%emt 0:02:31]} 18. Qxd3 {[%emt 0:01:48]} Rc8 {[%emt 0:01:46]} 19. Rc3 {[%emt 0:02:44] Inhibits Rc4.} Rb8 {[%emt 0:01:49]} 20. a3 {[%emt 0:02:22] Against Rb4} Qe8 {[%emt 0:05:26][%cal Od7e5]} 21. Qd4 {[%emt 0:02:03]} f6 {[%emt 0:03:50]} 22. exf6 {[%emt 0:01:45]} Nxf6 {[%emt 0:02:45][%cal Bd7f6,Bf6e4,Be4d6,Bd6c4][%mdl 32]} 23. g3 {[%emt 0:01:47]} Ne4 {[%emt 0:04:28]} 24. Rc7 {[%emt 0:00:21][%csl Gc7][%cal Rd4g7] [#]} Rf7 {[%emt 0:01:57]} 25. Rxf7 {[%emt 0:00:15]} Qxf7 {[%emt 0:00:06]} 26. Nc3 {[%emt 0:00:33]} Nd6 {[%emt 0:01:04]} 27. Qe5 {[%emt 0:08:50]} Rb6 {[%emt 0:01:09]} 28. Re1 {[%emt 0:00:56]} (28. b3 $16) 28... Nc4 $11 {[%emt 0:02:14][%csl LRb2,LRe5]} 29. Qg5 {[%emt 0:00:09] And now b3 would win.} Qf6 $2 {[%emt 0:10:03]} (29... h6 $1 $11 {and Black is okay.} 30. Qd8+ Kh7) 30. Qxf6 $18 {[%emt 0:08:16]} gxf6 {[%emt 0:00:02][%mdl 4096] Endgame [#] KRN-KRN} 31. f5 $1 {[%emt 0:00:41]} Kf7 {[%emt 0:10:36]} 32. b3 {[%emt 0:02:59]} Ne5 {[%emt 0:00:59]} 33. fxe6+ {[%emt 0:00:06]} Kxe6 {[%emt 0:00:32]} 34. Rd1 {[%emt 0:00:37]} Rd6 {[%emt 0:00:41]} 35. Nb5 {[%emt 0:00:09]} Rd7 {[%emt 0:00:29]} 36. Nd4+ {[%emt 0:00:23]} Kf7 {[%emt 0:00:06]} 37. a4 {[%emt 0:01:26]} Kg6 {[%emt 0:00:47]} 38. c3 {[%emt 0:00:54]} h5 {[%emt 0:01:07]} 39. h4 {[%emt 0:01:59]} Rg7 {[%emt 0:00:52]} 40. Ne6 {[%emt 0:00:51]} Rb7 {[%emt 0:00:35]} 41. Nd4 {[%emt 0:20:32]} (41. Rxd5 Kf5 $18) 41... Rg7 $1 {[%emt 0:00:30]} 42. Kd2 {[%emt 0:00:34]} Kf7 {[%emt 0:01:30]} 43. Ne2 {[%emt 0:00:13]} Rg4 {[%emt 0:04:09]} 44. Rf1 {[%emt 0:00:31]} Rg8 {[%emt 0:03:53]} 45. Rf5 {[%emt 0:01:33]} Rb8 {[%emt 0:00:26]} 46. Kc2 {[%emt 0:01:15]} (46. Rxh5 Rxb3 47. Nf4 d4 $16) 46... Kg6 {[%emt 0:01:49]} 47. Rf4 {[%emt 0:00:29]} Re8 {[%emt 0:00:26]} 48. Rf1 {[%emt 0:02:08] Inhibits Nf3.} ({Don't do} 48. Rd4 Kf5 49. Nf4 Rh8 50. Nxd5 (50. Rxd5 Kg4 $18) 50... Ng4 51. Ne7+ Ke6 $18) 48... Ng4 {[%emt 0:01:30] Threatens to win with ...Ne3+.} 49. Nf4+ {[%emt 0:00:24]} Kf7 {[%emt 0:01:25] ...Ne3+ is the strong threat.} 50. Rf3 {[%emt 0:01:44]} ({Stronger than} 50. Nxd5 Re5 $15) 50... Re5 {[%emt 0:00:14]} 51. Rd3 {[%emt 0:01:02]} Nf2 {[%emt 0:03:01]} (51... Ne3+ $142 52. Kb2 Ng2 53. Nxd5 Ne1) 52. Rxd5 {[%emt 0:02:51] White is clearly winning.} Re3 {[%emt 0:00:27]} 53. Rd7+ {[%emt 0:00:40]} Kf8 {[%emt 0:00:14]} 54. Nxh5 {[%emt 0:01:14]} Ne4 {[%emt 0:00:09]} 55. Rc7 {[%emt 0:01:30]} f5 {[%emt 0:00:47]} 56. Nf4 {[%emt 0:00:47]} Rxg3 {[%emt 0:00:22]} 57. h5 {[%emt 0:00:25]} Rf3 {[%emt 0:00:24]} 58. Ng6+ {[%emt 0:01:06]} Ke8 {[%emt 0:00:21]} 59. Rc8+ {[%emt 0:00:25]} Kd7 {[%emt 0:00:12]} 60. Ne5+ {[%emt 0:00:12] Weighted Error Value: White=0.20 (precise) /Black=0.33} 1-0